[Event "European Womens-ch 2025"]
[Site "Rhodes"]
[Date "2025.04.09"]
[Round "9.47"]
[White "Sivanandan, Bodhana"]
[Black "Schloffer, Jasmin-Denise"]
[Result "1/2-1/2"]
[Annotator "ChessBase"]
[ECO "B15"]
[WhiteElo "2073"]
[BlackElo "2188"]
[PlyCount "116"]
[EventDate "2025.03.29"]
[EventType "swiss"]
[EventCountry "GRE"]
[SourceTitle "playchess.com"]
[Source "ChessBase"]
[SourceQuality "1"]
[TimeControl "40/5400+30:1800+30"]

1. e4 {[%emt 0:03:09]} c6 {[%emt 0:00:06]} 2. d4 {[%emt 0:01:12]} d5 {[%emt 0:00:08]} 3. Nd2 {[%emt 0:00:40]} dxe4 {[%emt 0:00:08]} 4. Nxe4 {[%emt 0:00:15]} Nf6 {[%emt 0:00:08]} 5. Nxf6+ {[%emt 0:00:36]} exf6 {[%emt 0:00:07]} 6. c3 {[%emt 0:00:38]} Bd6 {[%emt 0:00:08]} 7. Bd3 {[%emt 0:00:42]} O-O {[%emt 0:00:14]} 8. Ne2 {[%emt 0:00:13]} Re8 {[%emt 0:00:33]} 9. O-O {[%emt 0:01:11]} Nd7 {[%emt 0:01:03]} 10. Ng3 {[%emt 0:01:26]} g6 {[%emt 0:00:45]} 11. Bh6 {[%emt 0:01:16]} Nf8 {[%emt 0:05:29]} 12. Qd2 {[%emt 0:02:21]} Ne6 {[%emt 0:04:02]} 13. Rfe1 {[%emt 0:10:26]} Bd7 {[%emt 0:02:58]} 14. Re2 {[%emt 0:02:50]} f5 {[%emt 0:08:39]} 15. Bc4 {[%emt 0:02:22]} b5 {[%emt 0:13:40]} 16. Bb3 {[%emt 0:03:59]} Qc7 {[%emt 0:16:42]} 17. Rae1 {[%emt 0:10:22]} Nf4 {[%emt 0:06:40]} 18. Rxe8+ {[%emt 0:06:32]} Rxe8 {[%emt 0:00:04]} 19. Rxe8+ {[%emt 0:00:40]} Bxe8 {[%emt 0:00:04]} 20. h3 {[%emt 0:01:13]} Bd7 {[%emt 0:05:02]} 21. Ne2 {[%emt 0:02:07]} Ne6 {[%emt 0:02:14]} 22. d5 {[%emt 0:02:05]} cxd5 {[%emt 0:03:47]} 23. Bxd5 {[%emt 0:02:07]} Bh2+ {[%emt 0:02:44]} 24. Kh1 {[%emt 0:02:38]} Be5 {[%emt 0:00:43]} 25. a3 {[%emt 0:05:41]} a6 {[%emt 0:04:05]} 26. Bxe6 {[%emt 0:05:09]} fxe6 {[%emt 0:04:10]} 27. Be3 {[%emt 0:05:09]} Bc6 {[%emt 0:02:34]} 28. Kg1 {[%emt 0:05:17]} Qd6 {[%emt 0:02:31]} 29. Qxd6 {[%emt 0:02:02]} Bxd6 {[%emt 0:00:05]} 30. f4 {[%emt 0:00:21]} e5 {[%emt 0:04:17]} 31. fxe5 {[%emt 0:02:22]} Bxe5 {[%emt 0:00:07]} 32. Kf2 {[%emt 0:00:35]} Kf7 {[%emt 0:00:24]} 33. g3 {[%emt 0:03:32]} Be4 {[%emt 0:01:45]} 34. Bd4 {[%emt 0:02:53]} Bd6 {[%emt 0:01:46]} 35. Ke3 {[%emt 0:01:22]} Bb7 {[%emt 0:03:48]} 36. h4 {[%emt 0:01:57]} h6 {[%emt 0:01:35]} 37. Kf2 {[%emt 0:04:05]} g5 {[%emt 0:01:12]} 38. hxg5 {[%emt 0:00:51]} hxg5 {[%emt 0:00:07]} 39. Nc1 {[%emt 0:00:43]} Ke6 {[%emt 0:02:24]} 40. Nd3 {[%emt 0:00:00]} Kd5 {[%emt 0:00:00]} 41. b3 {[%emt 0:06:24]} a5 {[%emt 0:13:26]} 42. Be3 {[%emt 0:05:11]} Be7 {[%emt 0:06:34]} 43. Ke2 {[%emt 0:13:34]} Bc8 {[%emt 0:03:28]} 44. b4 {[%emt 0:03:47]} axb4 {[%emt 0:02:26]} 45. axb4 {[%emt 0:03:02]} Bf6 {[%emt 0:03:05]} 46. Bd2 {[%emt 0:02:00]} Kc4 {[%emt 0:00:51]} 47. Nb2+ {[%emt 0:01:08]} Kb3 {[%emt 0:01:11]} 48. Nd1 {[%emt 0:01:28]} Bb7 {[%emt 0:02:41]} 49. Be1 {[%emt 0:03:08]} Be4 {[%emt 0:00:34]} 50. Bd2 {[%emt 0:01:23]} Bc2 {[%emt 0:01:46]} 51. Ne3 {[%emt 0:00:17]} Bxc3 {[%emt 0:00:52]} 52. Nxc2 {[%emt 0:00:06]} Kxc2 {[%emt 0:00:04]} 53. Bxg5 {[%emt 0:00:04]} Bxb4 {[%emt 0:00:09]} 54. Kf3 {[%emt 0:00:08]} Bc3 {[%emt 0:02:10]} 55. Be7 {[%emt 0:00:36]} Kd3 {[%emt 0:00:53]} 56. Kf4 {[%emt 0:00:10]} Be1 {[%emt 0:00:25]} 57. Bd6 {[%emt 0:00:11]} b4 {[%emt 0:00:37]} 58. Bxb4 {[%emt 0:00:07]} Bxb4 {[%emt 0:00:06]} 1/2-1/2

[Event "European Womens-ch 2025"]
[Site "Rhodes"]
[Date "2025.04.09"]
[Round "9.49"]
[White "Zaksaite, Salomeja"]
[Black "Bhatia, Kanishka"]
[Result "1/2-1/2"]
[Annotator "NA"]
[ECO "C00"]
[WhiteElo "2137"]
[BlackElo "2012"]
[PlyCount "94"]
[EventDate "2025.03.29"]
[EventType "swiss"]
[EventCountry "GRE"]
[SourceTitle "playchess.com"]
[Source "ChessBase"]
[SourceQuality "1"]
[TimeControl "40/5400+30:1800+30"]

1. e4 {[%emt 0:00:29]} e6 {[%emt 0:01:06]} 2. Qe2 {[%emt 0:03:25]} Be7 {[%emt 0:00:43]} 3. g3 {[%emt 0:01:57]} d5 {[%emt 0:01:32]} 4. d3 {[%emt 0:00:05]} dxe4 {[%emt 0:03:45]} 5. dxe4 {[%emt 0:00:03]} e5 {[%emt 0:00:17]} 6. Nc3 {[%emt 0:00:26]} Nf6 {[%emt 0:00:36]} 7. Nf3 {[%emt 0:00:49]} Nbd7 {[%emt 0:00:33]} 8. Bg2 {[%emt 0:11:36]} c6 {[%emt 0:01:02]} 9. O-O {[%emt 0:00:11]} O-O {[%emt 0:00:14]} 10. Nh4 {[%emt 0:00:47]} Re8 {[%emt 0:00:42]} 11. Nf5 {[%emt 0:07:47]} Bf8 {[%emt 0:00:49]} 12. Rd1 {[%emt 0:00:13]} Qc7 {[%emt 0:00:30]} 13. a4 {[%emt 0:00:24]} a5 {[%emt 0:01:27]} 14. b3 {[%emt 0:02:00]} b6 {[%emt 0:06:18]} 15. g4 {[%emt 0:05:17]} g6 {[%emt 0:01:32]} 16. Nh6+ {[%emt 0:00:56]} Kg7 {[%emt 0:02:09]} 17. Qf3 {[%emt 0:11:29]} Nc5 {[%emt 0:04:11]} 18. Ne2 {[%emt 0:01:24]} Nfxe4 {[%emt 0:06:41]} 19. Ng3 {[%emt 0:09:48]} Nxg3 {[%emt 0:01:19]} 20. hxg3 {[%emt 0:00:34]} Bb7 {[%emt 0:05:34]} 21. g5 {[%emt 0:09:48]} Qe7 {[%emt 0:04:31]} 22. Bb2 {[%emt 0:02:15]} f6 {[%emt 0:07:43]} 23. gxf6+ {[%emt 0:11:58]} Qxf6 {[%emt 0:00:19]} 24. Qxf6+ {[%emt 0:00:05]} Kxf6 {[%emt 0:00:08]} 25. Ng4+ {[%emt 0:00:06]} Kf7 {[%emt 0:08:46]} 26. Nxe5+ {[%emt 0:00:12]} Kg8 {[%emt 0:00:41]} 27. Nxc6 {[%emt 0:12:13]} Rac8 {[%emt 0:01:29]} 28. Bd5+ {[%emt 0:01:58]} Ne6 {[%emt 0:00:25]} 29. Bxe6+ {[%emt 0:00:36]} Rxe6 {[%emt 0:00:32]} 30. Nd8 {[%emt 0:00:25]} Re7 {[%emt 0:07:58]} 31. Nxb7 {[%emt 0:01:05]} Rxc2 {[%emt 0:02:41]} 32. Bd4 {[%emt 0:02:21]} Rxb7 {[%emt 0:00:57]} 33. Rac1 {[%emt 0:00:08]} Rxc1 {[%emt 0:00:30]} 34. Rxc1 {[%emt 0:00:03]} b5 {[%emt 0:02:15]} 35. Rc8 {[%emt 0:00:55]} bxa4 {[%emt 0:05:17]} 36. bxa4 {[%emt 0:00:06]} Kf7 {[%emt 0:00:53]} 37. Bc5 {[%emt 0:00:53]} Bg7 {[%emt 0:00:57]} 38. Kg2 {[%emt 0:00:23]} Rb3 {[%emt 0:03:47]} 39. Rc7+ {[%emt 0:00:33]} Kg8 {[%emt 0:00:23]} 40. Ra7 {[%emt 0:00:00]} Bc3 {[%emt 0:00:00]} 41. Ra6 {[%emt 0:11:50]} Rb2 {[%emt 0:10:39]} 42. Bb6 {[%emt 0:03:11]} Ra2 {[%emt 0:00:31]} 43. Bxa5 {[%emt 0:01:43]} Rxa4 {[%emt 0:00:43]} 44. Ra8+ {[%emt 0:00:07]} Kf7 {[%emt 0:00:11]} 45. Ra7+ {[%emt 0:00:06]} Ke6 {[%emt 0:00:53]} 46. Bb6 {[%emt 0:00:16]} Rxa7 {[%emt 0:00:06]} 47. Bxa7 {[%emt 0:00:04]} Ke5 {[%emt 0:39:45]} 1/2-1/2

[Event "European Womens-ch 2025"]
[Site "Rhodes"]
[Date "2025.04.09"]
[Round "9.50"]
[White "Bochnickova, Andrea"]
[Black "Chelushkina, Irina"]
[Result "0-1"]
[Annotator "NA"]
[ECO "A95"]
[WhiteElo "2051"]
[BlackElo "2134"]
[PlyCount "66"]
[EventDate "2025.03.29"]
[EventType "swiss"]
[EventCountry "GRE"]
[SourceTitle "playchess.com"]
[Source "ChessBase"]
[SourceQuality "1"]
[TimeControl "40/5400+30:1800+30"]

1. d4 {[%emt 0:00:11]} e6 {[%emt 0:01:33]} 2. Nf3 {[%emt 0:01:30]} f5 {[%emt 0:00:20]} 3. c4 {[%emt 0:01:20]} Nf6 {[%emt 0:00:05]} 4. Nc3 {[%emt 0:00:11]} Be7 {[%emt 0:01:37]} 5. g3 {[%emt 0:00:29]} O-O {[%emt 0:00:05]} 6. Bg2 {[%emt 0:00:04]} c6 {[%emt 0:02:33]} 7. O-O {[%emt 0:06:22]} d5 {[%emt 0:00:45]} 8. Bg5 {[%emt 0:08:56]} Bd7 {[%emt 0:03:06]} 9. Ne5 {[%emt 0:02:46]} Be8 {[%emt 0:04:19]} 10. Qb3 {[%emt 0:09:13]} Qb6 {[%emt 0:09:41]} 11. Qxb6 {[%emt 0:07:58]} axb6 {[%emt 0:00:06]} 12. b3 {[%emt 0:08:21]} h6 {[%emt 0:01:05]} 13. Bxf6 {[%emt 0:02:47]} gxf6 {[%emt 0:00:07]} 14. Nd3 {[%emt 0:01:01]} dxc4 {[%emt 0:06:26]} 15. bxc4 {[%emt 0:00:17]} Ra3 {[%emt 0:00:15]} 16. Rfc1 {[%emt 0:03:18]} Nd7 {[%emt 0:00:29]} 17. f4 {[%emt 0:05:40]} Bf7 {[%emt 0:01:48]} 18. Rab1 {[%emt 0:09:01]} Rc8 {[%emt 0:08:05]} 19. Kf1 {[%emt 0:01:32]} Kf8 {[%emt 0:04:18]} 20. Rb3 {[%emt 0:02:18]} e5 {[%emt 0:04:22]} 21. d5 {[%emt 0:05:32]} e4 {[%emt 0:00:18]} 22. Nb2 {[%emt 0:08:27]} cxd5 {[%emt 0:01:30]} 23. Nb5 {[%emt 0:01:05]} Rxa2 {[%emt 0:00:38]} 24. Nd4 {[%emt 0:04:37]} dxc4 {[%emt 0:01:32]} 25. Nd1 {[%emt 0:01:52]} Bc5 {[%emt 0:01:25]} 26. Rb5 {[%emt 0:01:28]} Bxd4 {[%emt 0:00:26]} 27. Rxf5 {[%emt 0:00:05]} Be6 {[%emt 0:05:14]} 28. Rh5 {[%emt 0:01:04]} Bg4 {[%emt 0:01:02]} 29. Rxh6 {[%emt 0:00:18]} Bxe2+ {[%emt 0:00:09]} 30. Ke1 {[%emt 0:00:08]} Kg7 {[%emt 0:00:16]} 31. Rh4 {[%emt 0:00:34]} f5 {[%emt 0:00:25]} 32. g4 {[%emt 0:01:35]} Bxg4 {[%emt 0:00:26]} 33. Bxe4 {[%emt 0:00:21]} Re2+ {[%emt 0:00:09]} 0-1

[Event "European Womens-ch 2025"]
[Site "Rhodes"]
[Date "2025.04.09"]
[Round "9.51"]
[White "Bochnickova, Simona"]
[Black "Karadas, Hena"]
[Result "1/2-1/2"]
[Annotator "ChessBase"]
[ECO "B33"]
[WhiteElo "2167"]
[BlackElo "1931"]
[PlyCount "71"]
[EventDate "2025.03.29"]
[EventType "swiss"]
[EventCountry "GRE"]
[SourceTitle "playchess.com"]
[Source "ChessBase"]
[SourceQuality "1"]
[TimeControl "40/5400+30:1800+30"]

1. e4 {[%emt 1:31:00]} c5 {[%emt 1:31:00]} 2. Nf3 {[%emt 0:00:30]} Nc6 {[%emt 0:00:30]} 3. d4 {[%emt 0:00:30]} cxd4 {[%emt 0:00:30]} 4. Nxd4 {[%emt 0:00:30]} e5 {[%emt 0:00:30]} 5. Nb5 {[%emt 0:00:30]} d6 {[%emt 0:00:30]} 6. N1c3 {[%emt 0:00:30]} a6 {[%emt 0:00:30]} 7. Na3 {[%emt 0:00:30]} Be7 {[%emt 0:00:30]} 8. Nd5 {[%emt 0:00:30]} Nf6 {[%emt 0:00:30]} 9. Nxf6+ {[%emt 0:00:30]} Bxf6 {[%emt 0:00:30]} 10. Nc4 {[%emt 0:00:30]} Be7 {[%emt 0:00:30]} 11. Be3 {[%emt 0:00:30]} b5 {[%emt 0:00:30]} 12. Nb6 {[%emt 0:00:30]} Rb8 {[%emt 0:00:30]} 13. Nd5 {[%emt 0:00:30]} Be6 {[%emt 0:00:30]} 14. Be2 {[%emt 0:00:30]} O-O {[%emt 0:00:30]} 15. O-O {[%emt 0:00:30]} Bg5 {[%emt 0:00:30]} 16. Bg4 {[%emt 0:00:30]} Bxd5 {[%emt 0:00:30]} 17. exd5 {[%emt 0:00:30]} Na5 {[%emt 0:00:30]} 18. Qd3 {[%emt 0:00:30]} Nc4 {[%emt 0:00:30]} 19. b3 {[%emt 0:00:30]} Nxe3 {[%emt 0:00:30]} 20. fxe3 {[%emt 0:00:30]} Qb6 {[%emt 0:00:30]} 21. Rae1 {[%emt 0:00:30]} g6 {[%emt 0:00:30]} 22. Bd7 {[%emt 0:00:30]} Rbd8 {[%emt 0:00:30]} 23. Bc6 {[%emt 0:00:30]} f5 {[%emt 0:00:30]} 24. Kh1 {[%emt 0:00:30]} e4 {[%emt 0:00:30]} 25. Qe2 {[%emt 0:00:30]} Rf7 {[%emt 0:00:30]} 26. g4 {[%emt 0:00:30]} Bh4 {[%emt 0:00:30]} 27. Rd1 {[%emt 0:00:30]} Rdf8 {[%emt 0:00:30]} 28. gxf5 {[%emt 0:00:30]} Rxf5 {[%emt 0:00:30]} 29. Rxf5 {[%emt 0:00:30]} Rxf5 {[%emt 0:00:30]} 30. Rd4 {[%emt 0:00:30]} Qd8 {[%emt 0:00:30]} 31. Rxe4 {[%emt 0:00:30]} Qf6 {[%emt 0:00:30]} 32. Rf4 {[%emt 0:00:30]} Rxf4 {[%emt 0:00:30]} 33. exf4 {[%emt 0:00:30]} Qxf4 {[%emt 0:00:30]} 34. a4 {[%emt 0:00:30]} bxa4 {[%emt 0:00:30]} 35. Bxa4 {[%emt 0:00:30]} Qf2 {[%emt 0:00:30]} 36. Qxf2 {[%emt 0:00:30]} 1/2-1/2

[Event "European Womens-ch 2025"]
[Site "Rhodes"]
[Date "2025.04.09"]
[Round "9.52"]
[White "Ciolacu, Alessia-Mihaela"]
[Black "Nenova, Andzhelika"]
[Result "1-0"]
[Annotator "NA"]
[ECO "A67"]
[WhiteElo "2136"]
[BlackElo "1903"]
[PlyCount "97"]
[EventDate "2025.03.29"]
[EventType "swiss"]
[EventCountry "GRE"]
[SourceTitle "playchess.com"]
[Source "ChessBase"]
[SourceQuality "1"]
[TimeControl "40/5400+30:1800+30"]

1. d4 {[%emt 0:00:15]} Nf6 {[%emt 0:00:13]} 2. c4 {[%emt 0:00:11]} c5 {[%emt 0:00:04]} 3. d5 {[%emt 0:00:11]} e6 {[%emt 0:00:04]} 4. Nc3 {[%emt 0:00:10]} exd5 {[%emt 0:00:04]} 5. cxd5 {[%emt 0:00:06]} d6 {[%emt 0:00:03]} 6. e4 {[%emt 0:00:16]} g6 {[%emt 0:00:06]} 7. f4 {[%emt 0:00:14]} Bg7 {[%emt 0:00:07]} 8. Bb5+ {[%emt 0:00:14]} Nfd7 {[%emt 0:00:04]} 9. a4 {[%emt 0:00:15]} O-O {[%emt 0:00:07]} 10. Nf3 {[%emt 0:00:34]} Na6 {[%emt 0:00:06]} 11. O-O {[%emt 0:02:43]} Nb4 {[%emt 0:00:04]} 12. Re1 {[%emt 0:03:57]} a6 {[%emt 0:02:31]} 13. Bf1 {[%emt 0:01:11]} Re8 {[%emt 0:00:26]} 14. h3 {[%emt 0:10:01]} f5 {[%emt 0:03:36]} 15. Qb3 {[%emt 0:04:12]} fxe4 {[%emt 0:07:29]} 16. Nxe4 {[%emt 0:01:17]} Nf6 {[%emt 0:02:24]} 17. Nxf6+ {[%emt 0:09:07]} Bxf6 {[%emt 0:00:08]} 18. Bd2 {[%emt 0:00:51]} Bd7 {[%emt 0:09:51]} 19. a5 {[%emt 0:04:40]} Rxe1 {[%emt 0:33:03]} 20. Bxe1 {[%emt 0:00:13]} Rc8 {[%emt 0:03:00]} 21. Bc3 {[%emt 0:09:10]} Bf5 {[%emt 0:05:25]} 22. Re1 {[%emt 0:15:26]} Nc2 {[%emt 0:13:12]} 23. Rd1 {[%emt 0:02:15]} Nd4 {[%emt 0:10:59]} 24. Bxd4 {[%emt 0:01:05]} cxd4 {[%emt 0:00:10]} 25. Nxd4 {[%emt 0:00:11]} Bxd4+ {[%emt 0:03:46]} 26. Rxd4 {[%emt 0:00:02]} Qxa5 {[%emt 0:00:09]} 27. Qxb7 {[%emt 0:02:06]} Qe1 {[%emt 0:00:34]} 28. Qb4 {[%emt 0:02:58]} Qe3+ {[%emt 0:00:04]} 29. Kh2 {[%emt 0:00:17]} Rc1 {[%emt 0:01:43]} 30. Rc4 {[%emt 0:01:50]} Rxc4 {[%emt 0:04:39]} 31. Qxc4 {[%emt 0:00:05]} Qe4 {[%emt 0:01:10]} 32. g4 {[%emt 0:07:53]} Qxc4 {[%emt 0:00:29]} 33. Bxc4 {[%emt 0:00:03]} Bc8 {[%emt 0:00:04]} 34. b4 {[%emt 0:00:16]} Kf7 {[%emt 0:00:21]} 35. Kg3 {[%emt 0:00:47]} h5 {[%emt 0:01:05]} 36. gxh5 {[%emt 0:03:16]} gxh5 {[%emt 0:00:05]} 37. Kh4 {[%emt 0:00:11]} Kf6 {[%emt 0:00:57]} 38. Bd3 {[%emt 0:01:36]} Bb7 {[%emt 0:00:06]} 39. Be4 {[%emt 0:00:44]} Bc8 {[%emt 0:00:04]} 40. Kg3 {[%emt 0:00:00]} Bb7 {[%emt 0:00:00]} 41. Kh4 {[%emt 0:21:35]} Bc8 {[%emt 0:01:03]} 42. Bh7 {[%emt 0:03:19]} Bd7 {[%emt 0:01:11]} 43. Bd3 {[%emt 0:00:57]} Bc8 {[%emt 0:00:29]} 44. Kxh5 {[%emt 0:00:54]} Bxh3 {[%emt 0:00:39]} 45. Bxa6 {[%emt 0:01:15]} Bg2 {[%emt 0:02:00]} 46. Bb7 {[%emt 0:00:51]} Bf3+ {[%emt 0:25:49]} 47. Kh4 {[%emt 0:00:17]} Ke7 {[%emt 0:00:25]} 48. b5 {[%emt 0:00:32]} Kd7 {[%emt 0:00:35]} 49. b6 {[%emt 0:00:11]} 1-0

[Event "European Womens-ch 2025"]
[Site "Rhodes"]
[Date "2025.04.09"]
[Round "9.53"]
[White "Valkova, Angelika"]
[Black "Heinatz, Gundula"]
[Result "1/2-1/2"]
[Annotator "NA"]
[ECO "D31"]
[WhiteElo "2001"]
[BlackElo "2111"]
[PlyCount "69"]
[EventDate "2025.03.29"]
[EventType "swiss"]
[EventCountry "GRE"]
[SourceTitle "playchess.com"]
[Source "ChessBase"]
[SourceQuality "1"]
[TimeControl "40/5400+30:1800+30"]

1. d4 {[%emt 1:31:00]} d5 {[%emt 1:31:00]} 2. c4 {[%emt 0:00:30]} e6 {[%emt 0:00:30]} 3. cxd5 {[%emt 0:00:30]} exd5 {[%emt 0:00:30]} 4. Nc3 {[%emt 0:00:30]} c6 {[%emt 0:00:30]} 5. Bf4 {[%emt 0:00:30]} Bd6 {[%emt 0:00:30]} 6. Bxd6 {[%emt 0:00:30]} Qxd6 {[%emt 0:00:30]} 7. Qb3 {[%emt 0:00:30]} Nf6 {[%emt 0:00:30]} 8. e3 {[%emt 0:00:30]} O-O {[%emt 0:00:30]} 9. Nf3 {[%emt 0:00:30]} b6 {[%emt 0:00:30]} 10. Bd3 {[%emt 0:00:30]} Ba6 {[%emt 0:00:30]} 11. Bxa6 {[%emt 0:00:30]} Nxa6 {[%emt 0:00:30]} 12. O-O {[%emt 0:00:30]} Nc7 {[%emt 0:00:30]} 13. Rac1 {[%emt 0:00:30]} Rfe8 {[%emt 0:00:30]} 14. Na4 {[%emt 0:00:30]} Ne6 {[%emt 0:00:30]} 15. Qc3 {[%emt 0:00:30]} Rac8 {[%emt 0:00:30]} 16. b4 {[%emt 0:00:30]} Ne4 {[%emt 0:00:30]} 17. Qb3 {[%emt 0:00:30]} h6 {[%emt 0:00:30]} 18. Rc2 {[%emt 0:00:30]} c5 {[%emt 0:00:30]} 19. bxc5 {[%emt 0:00:30]} bxc5 {[%emt 0:00:30]} 20. dxc5 {[%emt 0:00:30]} N6xc5 {[%emt 0:00:30]} 21. Nxc5 {[%emt 0:00:30]} Rxc5 {[%emt 0:00:30]} 22. Rxc5 {[%emt 0:00:30]} Qxc5 {[%emt 0:00:30]} 23. Rd1 {[%emt 0:00:30]} Rc8 {[%emt 0:00:30]} 24. Nd4 {[%emt 0:00:30]} a5 {[%emt 0:00:30]} 25. h3 {[%emt 0:00:30]} Nc3 {[%emt 0:00:30]} 26. Rc1 {[%emt 0:00:30]} Qb4 {[%emt 0:00:30]} 27. Kf1 {[%emt 0:00:30]} Rc4 {[%emt 0:00:30]} 28. a3 {[%emt 0:00:30]} Qc5 {[%emt 0:00:30]} 29. Rc2 {[%emt 0:00:30]} a4 {[%emt 0:00:30]} 30. Qb8+ {[%emt 0:00:30]} Kh7 {[%emt 0:00:30]} 31. Qb2 {[%emt 0:00:30]} Ne4 {[%emt 0:00:30]} 32. Nf5 {[%emt 0:00:30]} Nf6 {[%emt 0:00:30]} 33. Nd4 {[%emt 0:00:30]} Ne4 {[%emt 0:00:30]} 34. Nf5 {[%emt 0:00:30]} Nf6 {[%emt 0:00:30]} 35. Nd4 {[%emt 0:00:30]} 1/2-1/2

[Event "European Womens-ch 2025"]
[Site "Rhodes"]
[Date "2025.04.09"]
[Round "9.54"]
[White "Golsta, Madara"]
[Black "Tsetskhladze, Mariam"]
[Result "1/2-1/2"]
[Annotator "NA"]
[ECO "A20"]
[WhiteElo "1979"]
[BlackElo "2105"]
[PlyCount "82"]
[EventDate "2025.03.29"]
[EventType "swiss"]
[EventCountry "GRE"]
[SourceTitle "playchess.com"]
[Source "ChessBase"]
[SourceQuality "1"]
[TimeControl "40/5400+30:1800+30"]

1. c4 {[%emt 0:00:03]} e5 {[%emt 0:00:26]} 2. g3 {[%emt 0:00:08]} c6 {[%emt 0:00:14]} 3. d4 {[%emt 0:00:12]} exd4 {[%emt 0:00:51]} 4. Qxd4 {[%emt 0:00:13]} d5 {[%emt 0:00:08]} 5. cxd5 {[%emt 0:02:23]} cxd5 {[%emt 0:00:06]} 6. Bg2 {[%emt 0:01:28]} Be6 {[%emt 0:00:40]} 7. Nc3 {[%emt 0:05:04]} Nc6 {[%emt 0:01:16]} 8. Qa4 {[%emt 0:07:23]} Nf6 {[%emt 0:03:35]} 9. Bg5 {[%emt 0:09:40]} Bc5 {[%emt 0:04:13]} 10. Nh3 {[%emt 0:05:36]} Bxh3 {[%emt 0:31:08]} 11. Bxh3 {[%emt 0:02:16]} d4 {[%emt 0:11:48]} 12. Bxf6 {[%emt 0:03:54]} Qxf6 {[%emt 0:01:38]} 13. Ne4 {[%emt 0:02:34]} Qe5 {[%emt 0:02:48]} 14. Nxc5 {[%emt 0:01:43]} Qxc5 {[%emt 0:00:04]} 15. O-O {[%emt 0:02:50]} O-O {[%emt 0:02:35]} 16. Bg2 {[%emt 0:00:59]} Rac8 {[%emt 0:15:06]} 17. Rac1 {[%emt 0:03:49]} Qb6 {[%emt 0:03:16]} 18. b3 {[%emt 0:18:51]} Ne5 {[%emt 0:07:34]} 19. Be4 {[%emt 0:03:29]} Rcd8 {[%emt 0:07:50]} 20. Rfd1 {[%emt 0:04:28]} f5 {[%emt 0:01:56]} 21. Bg2 {[%emt 0:01:13]} f4 {[%emt 0:01:01]} 22. Rf1 {[%emt 0:09:18]} fxg3 {[%emt 0:01:22]} 23. hxg3 {[%emt 0:00:46]} Qh6 {[%emt 0:01:23]} 24. Bf3 {[%emt 0:00:59]} Nxf3+ {[%emt 0:00:54]} 25. exf3 {[%emt 0:00:06]} Rxf3 {[%emt 0:00:34]} 26. Qxa7 {[%emt 0:02:20]} Rf7 {[%emt 0:00:25]} 27. Rcd1 {[%emt 0:04:10]} Rfd7 {[%emt 0:00:32]} 28. Rd3 {[%emt 0:00:49]} Qc6 {[%emt 0:00:32]} 29. Rfd1 {[%emt 0:02:24]} Qe4 {[%emt 0:00:33]} 30. Qc5 {[%emt 0:02:31]} Rd5 {[%emt 0:00:29]} 31. Qc7 {[%emt 0:00:03]} R5d7 {[%emt 0:00:20]} 32. Qc5 {[%emt 0:00:04]} Rd6 {[%emt 0:00:40]} 33. Qg5 {[%emt 0:01:50]} R8d7 {[%emt 0:00:27]} 34. Qf4 {[%emt 0:01:25]} Qxf4 {[%emt 0:00:21]} 35. gxf4 {[%emt 0:00:04]} Kf7 {[%emt 0:00:38]} 36. Kg2 {[%emt 0:00:09]} Kf6 {[%emt 0:00:32]} 37. Kf3 {[%emt 0:00:11]} g6 {[%emt 0:00:30]} 38. Ke4 {[%emt 0:02:38]} Re6+ {[%emt 0:00:22]} 39. Kf3 {[%emt 0:00:05]} Red6 {[%emt 0:00:34]} 40. Ke4 {[%emt 0:00:00]} Re7+ {[%emt 0:00:00]} 41. Kf3 {[%emt 0:00:11]} Red7 {[%emt 0:00:54]} 1/2-1/2

[Event "European Womens-ch 2025"]
[Site "Rhodes"]
[Date "2025.04.09"]
[Round "9.55"]
[White "Huseynova, Lala"]
[Black "Harutyunyan, Gabriela"]
[Result "1-0"]
[Annotator "NA"]
[ECO "B45"]
[WhiteElo "2065"]
[BlackElo "1793"]
[PlyCount "61"]
[EventDate "2025.03.29"]
[EventType "swiss"]
[EventCountry "GRE"]
[SourceTitle "playchess.com"]
[Source "ChessBase"]
[SourceQuality "1"]
[TimeControl "40/5400+30:1800+30"]

1. e4 {[%emt 1:31:00]} c5 {[%emt 1:31:00]} 2. Nf3 {[%emt 0:00:30]} Nc6 {[%emt 0:00:30]} 3. d4 {[%emt 0:00:30]} cxd4 {[%emt 0:00:30]} 4. Nxd4 {[%emt 0:00:30]} Nf6 {[%emt 0:00:30]} 5. Nc3 {[%emt 0:00:30]} e6 {[%emt 0:00:30]} 6. Ndb5 {[%emt 0:00:30]} Bb4 {[%emt 0:00:30]} 7. a3 {[%emt 0:00:30]} Bxc3+ {[%emt 0:00:30]} 8. Nxc3 {[%emt 0:00:30]} d5 {[%emt 0:00:30]} 9. exd5 {[%emt 0:00:30]} exd5 {[%emt 0:00:30]} 10. Bd3 {[%emt 0:00:30]} O-O {[%emt 0:00:30]} 11. O-O {[%emt 0:00:30]} d4 {[%emt 0:00:30]} 12. Ne4 {[%emt 0:00:30]} Nxe4 {[%emt 0:00:30]} 13. Bxe4 {[%emt 0:00:30]} Qh4 {[%emt 0:00:30]} 14. Re1 {[%emt 0:00:30]} Bg4 {[%emt 0:00:30]} 15. Qd3 {[%emt 0:00:30]} Rad8 {[%emt 0:00:30]} 16. Bf4 {[%emt 0:00:30]} h6 {[%emt 0:00:30]} 17. b4 {[%emt 0:00:30]} Bh5 {[%emt 0:00:30]} 18. Bg3 {[%emt 0:00:30]} Qf6 {[%emt 0:00:30]} 19. b5 {[%emt 0:00:30]} Ne7 {[%emt 0:00:30]} 20. Be5 {[%emt 0:00:30]} Qh4 {[%emt 0:00:30]} 21. Bxb7 {[%emt 0:00:30]} Nd5 {[%emt 0:00:30]} 22. Re4 {[%emt 0:00:30]} Qg5 {[%emt 0:00:30]} 23. f4 {[%emt 0:00:30]} Qf5 {[%emt 0:00:30]} 24. Rxd4 {[%emt 0:00:30]} Qxd3 {[%emt 0:00:30]} 25. Rxd3 {[%emt 0:00:30]} Nb6 {[%emt 0:00:30]} 26. a4 {[%emt 0:00:30]} Nc4 {[%emt 0:00:30]} 27. a5 {[%emt 0:00:30]} Be2 {[%emt 0:00:30]} 28. Rxd8 {[%emt 0:00:30]} Rxd8 {[%emt 0:00:30]} 29. b6 {[%emt 0:00:30]} axb6 {[%emt 0:00:30]} 30. a6 {[%emt 0:00:30]} Na5 {[%emt 0:00:30]} 31. a7 {[%emt 0:00:30]} 1-0